Workbook

Sheet Budget Worksheet
B2: Summer 2021-22 Faculty-led Program Budget Form
B4: PROGRAM DETAILS
B5: Academic Program Director (APD):
B6: Program location (Pick from Dropdown Menu):
B7: Name of provider 1:
B8: Name of provider 2:
B9: Name of provider 3:
B10: Name of provider 4:
B11: Name of provider 5:
B12: Currency used by provider (Pick from Dropdown Menu):
B13: Exchange factor (data provided for you to calculate fees) | E13: =SUMIFS('Exchange Factor List'!$C3:$C19,'Exchange Factor List'!$A3:$A19,'Budget Worksheet'!E12) -> 0
B14: Daily per diem rate used (Max=50% State Department Rate): | E14: =SUMIFS('Country Per Diem List'!$B2:$B28,'Country Per Diem List'!$A2:$A28,'Budget Worksheet'!E6) -> 0
B15: Date program departs the United States:
B16: Date program returns to the United States:
B17: Trip length (in days) | E17: =(E16-E15)+1 -> 1
B18: Minimum number of students
B19: Number of faculty:
B20: Number of assistants:
B21: Total Number of participants | E21: =SUM(E18:G20) -> 0
B22: Date of budget submission:
B25: STUDENT/GROUP TRAVEL EXPENSES
B26: Category | D26: Group Cost | E26: Cost per student | F26: Name of Provider | G26: Comments
B28: Program provider fee in USD (If itemized, enter zero-detail below) | D28: =SUM($E28*$E$18) -> 0 | E28: 0
B29: a) Lodging | D29: =SUM($E29*$E$18) -> 0 | E29: 0
B30: b.) Meals | D30: =SUM($E30*$E$18) -> 0 | E30: 0
B31: c) Transportation | D31: 0 | E31: 0
B32: d) Excursions | D32: 0 | E32: 0
B33: e) Other (If itemized, enter zero and detail below) | D33: 0 | E33: 0
B34: a) | D34: 0 | E34: 0
B35: b) | D35: 0 | E35: 0
B36: c) | D36: 0 | E36: 0
B37: d) | D37: 0 | E37: 0
B38: e) | D38: 0 | E38: 0
B39: f) | D39: 0 | E39: 0
B40: g) | D40: 0 | E40: 0
B41: TOTAL STUDENT/GROUP TRAVEL EXPENSES | D41: =SUM(D28:D40) -> 0 | E41: =SUM(E28:E40) -> 0
B42: FACULTY TRAVEL EXPENSES
B43: Category | C43: Cost per faculty | D43: Total Cost Faculty Travel | E43: Cost per student | F43: Comments
B45: Airfare to/from program site | C45: 0 | D45: =SUM($C45*$E$19) -> 0 | E45: =SUM($D45/$E$18) -> 
B46: Lodging at main location | C46: 0 | D46: =SUM($C46*$E$19) -> 0 | E46: =SUM($D46/$E$18) -> 
B47: Lodging during excursions | C47: 0 | D47: 0
B48: Per diem (meals and incidentals) | C48: =SUM($E$14*$E$17) -> 0 | D48: 0
B49: Transportation | C49: 0 | D49: 0
B50: Texas State insurance | C50: =1.76*E17 -> 1.76 | D50: =C50*E19 -> 0 | E50: =D50/E18 -> 
B51: Per diem reduction (ie. meals included) | C51: 0 | D51: =SUM($C51*$E$19)*-1 -> 0
B52: Cell phone | C52: 0 | D52: =SUM($C52*$E$19) -> 0
B53: Other (If itemized, enter zero and detail below) | C53: 0 | D53: =SUM($C53*$E$19) -> 0
B54: a) | C54: 0 | D54: 0
B55: b) | C55: 0 | D55: 0
B56: c) | C56: 0 | D56: 0
B57: d) | C57: 0 | D57: 0
B58: e) | C58: 0 | D58: 0
B59: f) | C59: 0 | D59: 0
B60: TOTAL FACULTY TRAVEL EXPENSES | C60: =SUM(C45+C46+C47+C48+C49+C50-C51+C52+C53+C54+C55+C56+C57+C58+C59) -> 1.76 | D60: =SUM(D45:D59) -> 0 | E60: =SUM(E45:E59) -> 
B61: PROGRAM ASSISTANT TRAVEL EXPENSES
B62: Category | C62: Cost per assistant | D62: Total Cost Assistant Travel | E62: Cost per student | F62: Comments
B64: Airfare to/from program site | C64: 0 | D64: =SUM($C64*$E$20) -> 0 | E64: =SUM($D64/$E$18) -> 
B65: Lodging at main location | C65: 0 | D65: =SUM($C65*$E$20) -> 0 | E65: =SUM($D65/$E$18) -> 
B66: Lodging during excursions | C66: 0 | D66: 0
B67: Per diem (meals and incidentals) | C67: =SUM($E$14*$E$17) -> 0 | D67: 0
B68: Transportation | C68: 0 | D68: 0
B69: Texas State insurance | C69: =1.76*(E17) -> 1.76 | D69: =C69*E20 -> 0
B70: Per diem reduction (ie. meals included) | C70: 0 | D70: =SUM($C70*$E$20)*-1 -> 0 | E70: =SUM($D70/$E$18) -> 
B71: Cell phone | C71: 0 | D71: =SUM($C71*$E$20) -> 0 | E71: =SUM($D71/$E$18) -> 
B72: Other (If itemized, enter zero and detail below) | C72: 0 | D72: 0
B73: a) | C73: 0 | D73: 0
B74: b) | C74: 0 | D74: 0
B75: c) | C75: 0 | D75: 0
B76: d) | C76: 0 | D76: 0
B77: e) | C77: 0 | D77: 0
B78: TOTAL ASSISTANT TRAVEL EXPENSES | C78: =SUM(C64+C65+C66+C67+C68+C69-C70+C71+C72+C73+C74+C75+C76+C77) -> 1.76 | D78: =SUM(D64:D77) -> 0 | E78: =SUM(E64:E77) -> 
B79: OPERATING EXPENSES
B80: Category | D80: Group cost | E80: Cost per student | F80: Comments
B82: Program assistant stipends | D82: 0 | E82: =SUM($D82/$E$18) -> 
B83: Pre-departure meetings | D83: 0
B84: Printing costs | D84: 0
B85: Office supplies/equipment | D85: 0
B86: Other (If itemized, enter zero and detail below) | D86: 0
B87: a) | D87: 0
B88: b) | D88: 0
B89: c) | D89: 0
B90: d) | D90: 0
B91: TOTAL OPERATING AND OTHER EXPENSES | D91: =SUM(D82:D90) -> 0 | E91: =SUM(E82:E90) -> 
B92: FACULTY COMMENTS
B93: If you have a Program Assistant please provide: name, email and phone number.
B94: ATTENTION! APD STOP HERE.
B96: EDUCATION ABROAD OFFICE USE ONLY
B98: STUDENT TRAVEL EXPENSES (NOT INCLUDED IN PROGRAM FEE)
B99: Category | E99: Cost per student | F99: Comments
B101: Airfare to/from program site | E101: =C45 -> 0
B102: Airfare (in-country) | E102: 0
B103: Local transportation (If itemized, enter zero and detail below) | E103: =C49 -> 0
B104: a) | E104: 0
B105: b) | E105: 0
B106: c) | E106: 0
B107: d) | E107: 0
B108: Lodging | E108: 0
B109: Meals | E109: 0
B110: Personal and Misc. | E110: 300
B111: Books and supplies | E111: 200
B112: Other: (If itemized, enter zero and detail below) | E112: 0
B113: a) | E113: 0
B114: b) | E114: 0
B115: c) | E115: 0
B116: TOTAL STUDENT TRAVEL EXPENSES | E116: =SUM(E101:E115) -> 500
B117: TEXAS STATE TUITION AND FEES
B118: Category | E118: Cost per student | F118: Tuition amount will be adjusted based on number of credit hours.
B120: Undergraduate Texas State tuition for 6 hrs. ($297 per credit hour) | E120: 1845
B121: Graduate Texas State tuition for 6 hrs. ($347 per credit hour) | E121: 2145
B122: Education abroad application fee | E122: 200
B123: Texas State insurance | E123: =1.76*(E17) -> 1.76
B124: TOTAL TEXAS STATE UNDERGRADUATE TUITION AND FEES | E124: =SUM(E120,E122,E123) -> 2046.76
B125: TOTAL TEXAS STATE GRADUATE TUITION AND FEES | E125: =SUM(E121,E122,E123) -> 2346.76
B127: TOTAL TEXAS STATE PROGRAM FEE | E127: =SUM(E41,E60,E78,E91) -> 
B129: TOTAL COST TO UNDERGRADUATE STUDENT TO BE PAID TO TEXAS STATE | E129: =SUM(E41,E60,E78,E91,E124) -> 
B130: TOTAL COST TO GRADUATE STUDENT TO BE PAID TO TEXAS STATE | E130: =SUM(E41,E60,E78,E91,E125) -> 
B132: TOTAL COST TO UNDERGRADUATE STUDENT/COA (includes other expenses not paid to TXST) | E132: =SUM(E116,E129) -> 
B133: TOTAL COST TO GRADUATE STUDENT/COA (includes other expenses not paid to TXST) | E133: =SUM(E116,E130) -> 
B134: COST OF ATTENDANCE CALCULATION
B135: Category | E135: Cost per student
B137: Undergraduate tuition and fees | E137: =SUM(E129) -> 
B138: Graduate tuition and fees | E138: =SUM(E130) -> 
B139: Room and board | E139: =SUM(E108,E109) -> 0
B140: Transportation | E140: =SUM(E101,E102,E103,E104,E105,E106,E107) -> 0
B141: Books and supplies | E141: =SUM(E111) -> 200
B142: Personal and miscellaneous | E142: =SUM(E112,E113,E114,E115,E110) -> 300
B143: TOTAL UNDERGRADUATE COST OF ATTENDANCE | E143: =SUM(E137,E139,E140,E141,E142) -> 
B144: TOTAL GRADUATE COST OF ATTENDANCE | E144: =SUM(E138,E139,E140,E141,E142) -> 
B145: EDUCATION ABROAD OFFICE PROGRAM NOTES

Sheet Country Per Diem List (hidden)
A1: Country | B1: Average of TXST Max Per Diem (50%) | D1: Average Rate
A2: ARGENTINA | B2: =SUM(D2*0.5) -> 57.875 | D2: 115.75
A3: AUSTRALIA | B3: =SUM(D3*0.5) -> 65.535 | D3: 131.07
A4: BELIZE | B4: 52.25 | D4: 104.5
A5: CAMBODIA | B5: 37.585 | D5: 75.17
A6: CHINA | B6: 55.79 | D6: 111.58
A7: COSTA RICA | B7: 61 | D7: 122
A8: CZECH REPUBLIC | B8: =SUM(D8*0.5) -> 45 | D8: 90
A9: DOMINICAN REPUBLIC | B9: 34.285715 | D9: 68.57143
A10: ECUADOR | B10: 51.5 | D10: 103
A11: FRANCE | B11: 78.04 | D11: 156.08
A12: GERMANY | B12: 65.35 | D12: 130.7
A13: GHANA | B13: 45.75 | D13: 91.5
A14: GREECE | B14: 51 | D14: 102
A15: HONG KONG | B15: 90 | D15: 180
A16: INDIA | B16: 51.955 | D16: 103.91
A17: IRELAND | B17: 57.375 | D17: 114.75
A18: ITALY | B18: 65.95 | D18: 131.9
A19: JAPAN | B19: 59.075 | D19: 118.15
A20: JORDAN | B20: =D20/2 -> 59 | D20: 118
A21: KOREA, South | B21: 44.68 | D21: 89.36
A22: MEXICO | B22: 38.94 | D22: 77.88
A23: NETHERLANDS | B23: 72 | D23: 144
A24: PORTUGAL | B24: 44.125 | D24: 88.25
A25: SOUTH AFRICA | B25: 40.785 | D25: 81.57
A26: SPAIN | B26: 53.9 | D26: 107.8
A27: TAIWAN | B27: 22 | D27: 94.25
A28: UNITED KINGDOM | B28: 63.605 | D28: 127.21
A32: Get this amount from the Post Per Diem List Worksheet

Sheet Post Per Diem List (hidden)
A3: Foreign Per Diem Rates In U.S. Dollars
A4: DSSR 925
A6: All Locations
A7: Publication Date: 06/01/2021
A8: Country Name | B8: Post Name | C8: Season Begin | D8: Season End | E8: Maximum Lodging Rate | F8: M & IE Rate | G8: Effective Date | H8: M&IE Average by Country
A9: AFGHANISTAN | B9: Kabul | C9: 2016-12-31 | D9: 2017-12-30 | E9: 0 | F9: 78 | G9: 2015-10-31
A10: AFGHANISTAN | B10: Other | C10: 2016-12-31 | D10: 2017-12-30 | E10: 0 | F10: 15 | G10: 1999-07-31
A11: ALBANIA | B11: Other | C11: 2016-12-31 | D11: 2017-12-30 | E11: 73 | F11: 77 | G11: 2017-03-31
A12: ALBANIA | B12: Tirana | C12: 2016-12-31 | D12: 2017-12-30 | E12: 134 | F12: 88 | G12: 2017-03-31
A13: ALGERIA | B13: Algiers | C13: 2016-12-31 | D13: 2017-12-30 | E13: 156 | F13: 65 | G13: 2017-01-31
A14: ALGERIA | B14: Other | C14: 2016-12-31 | D14: 2017-12-30 | E14: 192 | F14: 112 | G14: 2010-12-31
A15: ANDORRA | B15: Andorra | C15: 2016-12-31 | D15: 2017-12-30 | E15: 209 | F15: 123 | G15: 2003-12-31
A16: ANGOLA | B16: Luanda | C16: 2016-12-31 | D16: 2017-12-30 | E16: 405 | F16: 170 | G16: 2009-07-31
A17: ANGOLA | B17: Other | C17: 2016-12-31 | D17: 2017-12-30 | E17: 405 | F17: 170 | G17: 2009-07-31
A18: ANGUILLA | B18: The Valley | C18: 2016-12-31 | D18: 2017-12-30 | E18: 244 | F18: 130 | G18: 2016-01-31
A19: ANTARCTICA | B19: Antarctica Region Posts | C19: 2016-12-31 | D19: 2017-12-30 | E19: 0 | F19: 1 | G19: 2006-05-31
A20: ANTIGUA AND BARBUDA | B20: Antigua and Barbuda | C20: 2017-05-16 | D20: 2017-12-13 | E20: 175 | F20: 70 | G20: 2016-01-31
A21: ANTIGUA AND BARBUDA | B21: Antigua and Barbuda | C21: 2017-12-14 | D21: 2017-05-15 | E21: 204 | F21: 73 | G21: 2016-01-31
A22: ANTIGUA AND BARBUDA | B22: Other | C22: 2017-04-15 | D22: 2017-12-13 | E22: 37 | F22: 18 | G22: 2004-04-30
A23: ANTIGUA AND BARBUDA | B23: Other | C23: 2017-12-14 | D23: 2017-04-14 | E23: 50 | F23: 19 | G23: 2004-04-30
A24: ARGENTINA | B24: Bariloche | C24: 2016-12-31 | D24: 2017-12-30 | E24: 218 | F24: 112 | G24: 2008-02-29 | H24: =(SUM(F24:F27)/4) -> 115.75
A25: ARGENTINA | B25: Buenos Aires | C25: 2016-12-31 | D25: 2017-12-30 | E25: 267 | F25: 129 | G25: 2012-12-31
A26: ARGENTINA | B26: Mendoza | C26: 2016-12-31 | D26: 2017-12-30 | E26: 182 | F26: 105 | G26: 2008-04-30
A27: ARGENTINA | B27: Other | C27: 2016-12-31 | D27: 2017-12-30 | E27: 175 | F27: 117 | G27: 2008-04-30
A28: ARMENIA | B28: Other | C28: 2016-12-31 | D28: 2017-12-30 | E28: 148 | F28: 92 | G28: 2008-04-30
A29: ARMENIA | B29: Yerevan | C29: 2016-12-31 | D29: 2017-12-30 | E29: 148 | F29: 92 | G29: 2008-04-30
A30: Aruba | B30: Oranjestad | C30: 2017-01-14 | D30: 2017-04-21 | E30: 310 | F30: 141 | G30: 2015-09-30
A31: Aruba | B31: Oranjestad | C31: 2017-04-22 | D31: 2017-01-13 | E31: 259 | F31: 136 | G31: 2015-09-30
A32: Aruba | B32: Other | C32: 2017-01-14 | D32: 2017-04-21 | E32: 310 | F32: 141 | G32: 2017-04-30
A33: Aruba | B33: Other | C33: 2017-04-22 | D33: 2017-01-13 | E33: 259 | F33: 136 | G33: 2017-04-30
A34: ASCENSION ISLAND | B34: Ascension Island | C34: 2016-12-31 | D34: 2017-12-30 | E34: 122 | F34: 29 | G34: 2012-10-31
A35: AUSTRALIA | B35: Adelaide | C35: 2016-12-31 | D35: 2017-12-30 | E35: 163 | F35: 134 | G35: 2017-01-31 | H35: =(SUM(F35:F49)/15) -> 131.0666667
A36: AUSTRALIA | B36: Bendigo | C36: 2016-12-31 | D36: 2017-12-30 | E36: 287 | F36: 134 | G36: 2017-01-31
A37: AUSTRALIA | B37: Brisbane | C37: 2016-12-31 | D37: 2017-12-30 | E37: 175 | F37: 108 | G37: 2017-01-31
A38: AUSTRALIA | B38: Broome | C38: 2016-12-31 | D38: 2017-12-30 | E38: 322 | F38: 140 | G38: 2017-01-31
A39: AUSTRALIA | B39: Cairns | C39: 2016-12-31 | D39: 2017-12-30 | E39: 142 | F39: 111 | G39: 2017-01-31
A40: AUSTRALIA | B40: Canberra | C40: 2016-12-31 | D40: 2017-12-30 | E40: 171 | F40: 135 | G40: 2017-01-31
A41: AUSTRALIA | B41: Darwin, Northern Territory | C41: 2016-12-31 | D41: 2017-12-30 | E41: 222 | F41: 135 | G41: 2017-01-31
A42: AUSTRALIA | B42: Exmouth | C42: 2016-12-31 | D42: 2017-12-30 | E42: 182 | F42: 125 | G42: 2017-01-31
A43: AUSTRALIA | B43: Fremantle | C43: 2016-12-31 | D43: 2017-12-30 | E43: 197 | F43: 115 | G43: 2017-01-31
A44: AUSTRALIA | B44: Hobart | C44: 2016-12-31 | D44: 2017-12-30 | E44: 174 | F44: 143 | G44: 2017-01-31
A45: AUSTRALIA | B45: Melbourne | C45: 2016-12-31 | D45: 2017-12-30 | E45: 203 | F45: 157 | G45: 2017-01-31
A46: AUSTRALIA | B46: Other | C46: 2016-12-31 | D46: 2017-12-30 | E46: 142 | F46: 111 | G46: 2017-01-31
A47: AUSTRALIA | B47: Perth | C47: 2016-12-31 | D47: 2017-12-30 | E47: 224 | F47: 148 | G47: 2017-01-31
A48: AUSTRALIA | B48: Richmond, NSW | C48: 2016-12-31 | D48: 2017-12-30 | E48: 159 | F48: 115 | G48: 2017-01-31
A49: AUSTRALIA | B49: Sydney | C49: 2016-12-31 | D49: 2017-12-30 | E49: 240 | F49: 155 | G49: 2017-01-31
A50: AUSTRIA | B50: Graz | C50: 2016-12-31 | D50: 2017-12-30 | E50: 275 | F50: 128 | G50: 2016-12-31
A51: AUSTRIA | B51: Innsbruck | C51: 2016-12-31 | D51: 2017-12-30 | E51: 238 | F51: 135 | G51: 2016-12-31
A52: AUSTRIA | B52: Linz | C52: 2016-12-31 | D52: 2017-12-30 | E52: 200 | F52: 159 | G52: 2016-12-31
A53: AUSTRIA | B53: Other | C53: 2016-12-31 | D53: 2017-12-30 | E53: 238 | F53: 135 | G53: 2016-12-31
A54: AUSTRIA | B54: Salzburg | C54: 2016-12-31 | D54: 2017-12-30 | E54: 281 | F54: 123 | G54: 2016-12-31
A55: AUSTRIA | B55: Vienna | C55: 2016-12-31 | D55: 2017-12-30 | E55: 300 | F55: 130 | G55: 2016-12-31
A56: AZERBAIJAN | B56: Baku | C56: 2016-12-31 | D56: 2017-12-30 | E56: 246 | F56: 115 | G56: 2010-08-31
A57: AZERBAIJAN | B57: Ganja | C57: 2016-12-31 | D57: 2017-12-30 | E57: 125 | F57: 90 | G57: 2010-08-31
A58: AZERBAIJAN | B58: Other | C58: 2016-12-31 | D58: 2017-12-30 | E58: 98 | F58: 81 | G58: 2010-08-31
A59: AZERBAIJAN | B59: Qabala | C59: 2016-12-31 | D59: 2017-12-30 | E59: 128 | F59: 84 | G59: 2010-08-31
A60: Bahamas, The | B60: Andros Island | C60: 2016-12-31 | D60: 2017-12-30 | E60: 159 | F60: 107 | G60: 2011-07-31
A61: Bahamas, The | B61: Eleuthera Island | C61: 2017-04-16 | D61: 2017-11-13 | E61: 213 | F61: 143 | G61: 2011-08-31
A62: Bahamas, The | B62: Eleuthera Island | C62: 2017-11-14 | D62: 2017-04-15 | E62: 276 | F62: 150 | G62: 2011-08-31
A63: Bahamas, The | B63: Grand Bahama Island | C63: 2016-12-31 | D63: 2017-12-30 | E63: 187 | F63: 126 | G63: 2011-04-30
A64: Bahamas, The | B64: Nassau | C64: 2016-12-31 | D64: 2017-12-30 | E64: 318 | F64: 159 | G64: 2011-02-28
A65: Bahamas, The | B65: Other | C65: 2016-12-31 | D65: 2017-12-30 | E65: 176 | F65: 132 | G65: 2013-06-30
A66: BAHRAIN | B66: Bahrain | C66: 2016-12-31 | D66: 2017-12-30 | E66: 255 | F66: 122 | G66: 2012-07-31
A67: BAHRAIN | B67: MANAMA | C67: 2016-12-31 | D67: 2017-12-30 | E67: 255 | F67: 122 | G67: 2012-07-31
A68: BANGLADESH | B68: Chittagong | C68: 2016-12-31 | D68: 2017-12-30 | E68: 150 | F68: 96 | G68: 2016-03-31
A69: BANGLADESH | B69: Dhaka | C69: 2016-12-31 | D69: 2017-12-30 | E69: 240 | F69: 95 | G69: 2016-04-30
A70: BANGLADESH | B70: Other | C70: 2016-12-31 | D70: 2017-12-30 | E70: 143 | F70: 102 | G70: 2016-04-30
A71: BANGLADESH | B71: Sylhet | C71: 2016-12-31 | D71: 2017-12-30 | E71: 177 | F71: 104 | G71: 2016-04-30
A72: BARBADOS | B72: Barbados | C72: 2017-04-30 | D72: 2017-11-13 | E72: 200 | F72: 137 | G72: 2015-06-30
A73: BARBADOS | B73: Barbados | C73: 2017-11-14 | D73: 2017-04-29 | E73: 307 | F73: 147 | G73: 2015-06-30
A74: BELARUS | B74: Minsk | C74: 2016-12-31 | D74: 2017-12-30 | E74: 190 | F74: 84 | G74: 2012-12-31
A75: BELARUS | B75: Other | C75: 2016-12-31 | D75: 2017-12-30 | E75: 190 | F75: 84 | G75: 2012-12-31
A76: BELGIUM | B76: Antwerp | C76: 2016-12-31 | D76: 2017-12-30 | E76: 204 | F76: 113 | G76: 2016-12-31
A77: BELGIUM | B77: Brugge | C77: 2016-12-31 | D77: 2017-12-30 | E77: 138 | F77: 98 | G77: 2016-12-31
A78: BELGIUM | B78: Brussels | C78: 2017-03-14 | D78: 2017-06-20 | E78: 244 | F78: 143 | G78: 2016-12-31
A79: BELGIUM | B79: Brussels | C79: 2017-06-21 | D79: 2017-03-13 | E79: 188 | F79: 138 | G79: 2016-12-31
A80: BELGIUM | B80: Diegem | C80: 2017-03-14 | D80: 2017-06-20 | E80: 244 | F80: 143 | G80: 2016-12-31
A81: BELGIUM | B81: Diegem | C81: 2017-06-21 | D81: 2017-03-13 | E81: 188 | F81: 138 | G81: 2016-12-31
A82: BELGIUM | B82: Kleine Brogel | C82: 2016-12-31 | D82: 2017-12-30 | E82: 122 | F82: 86 | G82: 2016-12-31
A83: BELGIUM | B83: Liege | C83: 2016-12-31 | D83: 2017-12-30 | E83: 150 | F83: 81 | G83: 2016-12-31
A84: BELGIUM | B84: Other | C84: 2016-12-31 | D84: 2017-12-30 | E84: 87 | F84: 76 | G84: 2016-12-31
A85: BELGIUM | B85: SHAPE/Chievres | C85: 2016-12-31 | D85: 2017-12-30 | E85: 119 | F85: 87 | G85: 2016-12-31
A86: BELGIUM | B86: Zaventem | C86: 2017-03-14 | D86: 2017-06-20 | E86: 244 | F86: 143 | G86: 2016-12-31
A87: BELGIUM | B87: Zaventem | C87: 2017-06-21 | D87: 2017-03-13 | E87: 188 | F87: 138 | G87: 2016-12-31
A88: BELIZE | B88: Belize City | C88: 2016-12-31 | D88: 2017-12-30 | E88: 158 | F88: 115 | G88: 2016-02-29 | H88: =(SUM(F88:F95)/8) -> 104.5
A89: BELIZE | B89: Belmopan | C89: 2016-12-31 | D89: 2017-12-30 | E89: 156 | F89: 87 | G89: 2016-02-29
A90: BELIZE | B90: Caye Caulker | C90: 2016-12-31 | D90: 2017-12-30 | E90: 131 | F90: 111 | G90: 2016-02-29
A91: BELIZE | B91: Hopkins | C91: 2016-12-31 | D91: 2017-12-30 | E91: 199 | F91: 110 | G91: 2016-02-29
A92: BELIZE | B92: Other | C92: 2016-12-31 | D92: 2017-12-30 | E92: 143 | F92: 80 | G92: 2016-02-29
A93: BELIZE | B93: Placencia | C93: 2016-12-31 | D93: 2017-12-30 | E93: 202 | F93: 106 | G93: 2016-02-29
A94: BELIZE | B94: San Ignacio Town | C94: 2016-12-31 | D94: 2017-12-30 | E94: 155 | F94: 106 | G94: 2016-02-29
A95: BELIZE | B95: San Pedro | C95: 2016-12-31 | D95: 2017-12-30 | E95: 206 | F95: 121 | G95: 2016-02-29
A96: BENIN | B96: Cotonou | C96: 2016-12-31 | D96: 2017-12-30 | E96: 141 | F96: 94 | G96: 2017-03-31
A97: BENIN | B97: Other | C97: 2016-12-31 | D97: 2017-12-30 | E97: 80 | F97: 67 | G97: 2004-04-30
A98: BERMUDA | B98: Bermuda | C98: 2017-03-31 | D98: 2017-11-29 | E98: 445 | F98: 191 | G98: 2013-03-31
A99: BERMUDA | B99: Bermuda | C99: 2017-11-30 | D99: 2017-03-30 | E99: 365 | F99: 183 | G99: 2013-03-31
A100: BHUTAN | B100: Bhutan | C100: 2016-12-31 | D100: 2017-12-30 | E100: 280 | F100: 112 | G100: 2006-11-30
A101: BOLIVIA | B101: Cochabamba | C101: 2016-12-31 | D101: 2017-12-30 | E101: 85 | F101: 49 | G101: 2008-08-31
A102: BOLIVIA | B102: La Paz | C102: 2016-12-31 | D102: 2017-12-30 | E102: 140 | F102: 85 | G102: 2012-03-31
A103: BOLIVIA | B103: Other | C103: 2016-12-31 | D103: 2017-12-30 | E103: 77 | F103: 53 | G103: 2012-04-30
A104: BOLIVIA | B104: Potosi | C104: 2016-12-31 | D104: 2017-12-30 | E104: 88 | F104: 60 | G104: 2012-03-31
A105: BOLIVIA | B105: Santa Cruz | C105: 2016-12-31 | D105: 2017-12-30 | E105: 135 | F105: 82 | G105: 2011-09-30
A106: BOLIVIA | B106: Tarija | C106: 2016-12-31 | D106: 2017-12-30 | E106: 81 | F106: 60 | G106: 2013-08-31
A107: Bonaire, Sint Eustatius, and Saba | B107: Bonaire | C107: 2017-04-14 | D107: 2017-12-13 | E107: 118 | F107: 88 | G107: 2004-04-30
A108: Bonaire, Sint Eustatius, and Saba | B108: Bonaire | C108: 2017-12-14 | D108: 2017-04-13 | E108: 155 | F108: 91 | G108: 2004-04-30
A109: Bonaire, Sint Eustatius, and Saba | B109: Saba | C109: 2016-12-31 | D109: 2017-12-30 | E109: 186 | F109: 113 | G109: 2004-04-30
A110: Bosnia and Herzegovina | B110: Other | C110: 2016-12-31 | D110: 2017-12-30 | E110: 115 | F110: 72 | G110: 2017-03-31
A111: Bosnia and Herzegovina | B111: Sarajevo | C111: 2016-12-31 | D111: 2017-12-30 | E111: 115 | F111: 72 | G111: 2017-03-31
A112: BOTSWANA | B112: Francistown | C112: 2016-12-31 | D112: 2017-12-30 | E112: 141 | F112: 75 | G112: 2017-05-31
A113: BOTSWANA | B113: Gaborone | C113: 2016-12-31 | D113: 2017-12-30 | E113: 150 | F113: 83 | G113: 2017-05-31
A114: BOTSWANA | B114: Kasane | C114: 2016-12-31 | D114: 2017-12-30 | E114: 174 | F114: 86 | G114: 2017-05-31
A115: BOTSWANA | B115: Maun | C115: 2016-12-31 | D115: 2017-12-30 | E115: 150 | F115: 74 | G115: 2017-05-31
A116: BOTSWANA | B116: Other | C116: 2016-12-31 | D116: 2017-12-30 | E116: 131 | F116: 74 | G116: 2017-05-31
A117: BOTSWANA | B117: Selebi Phikwe | C117: 2016-12-31 | D117: 2017-12-30 | E117: 131 | F117: 74 | G117: 2017-05-31
A118: BOTSWANA | B118: Serowe | C118: 2016-12-31 | D118: 2017-12-30 | E118: 81 | F118: 72 | G118: 2017-05-31
A119: BRAZIL | B119: Belem | C119: 2016-12-31 | D119: 2017-12-30 | E119: 80 | F119: 49 | G119: 2017-05-31
A120: BRAZIL | B120: Belo Horizonte | C120: 2016-12-31 | D120: 2017-12-30 | E120: 72 | F120: 61 | G120: 2017-05-31
A121: BRAZIL | B121: Brasilia | C121: 2016-12-31 | D121: 2017-12-30 | E121: 219 | F121: 120 | G121: 2014-05-31
A122: BRAZIL | B122: Fortaleza | C122: 2016-12-31 | D122: 2017-12-30 | E122: 210 | F122: 114 | G122: 2009-05-31
A123: BRAZIL | B123: Foz do Iguacu | C123: 2016-12-31 | D123: 2017-12-30 | E123: 74 | F123: 75 | G123: 2017-05-31
A124: BRAZIL | B124: Goiania | C124: 2016-12-31 | D124: 2017-12-30 | E124: 194 | F124: 131 | G124: 2008-04-30
A125: BRAZIL | B125: Manaus | C125: 2016-12-31 | D125: 2017-12-30 | E125: 117 | F125: 95 | G125: 2014-05-31
A126: BRAZIL | B126: Natal | C126: 2016-12-31 | D126: 2017-12-30 | E126: 199 | F126: 95 | G126: 2006-10-31
A127: BRAZIL | B127: Other | C127: 2016-12-31 | D127: 2017-12-30 | E127: 177 | F127: 130 | G127: 2008-04-30
A128: BRAZIL | B128: Porto Alegre | C128: 2016-12-31 | D128: 2017-12-30 | E128: 150 | F128: 112 | G128: 2015-07-31
A129: BRAZIL | B129: Porto Velho | C129: 2016-12-31 | D129: 2017-12-30 | E129: 68 | F129: 40 | G129: 2017-05-31
A130: BRAZIL | B130: Recife, Pernambuco | C130: 2016-12-31 | D130: 2017-12-30 | E130: 199 | F130: 93 | G130: 2006-10-31
A131: BRAZIL | B131: Rio de Janeiro | C131: 2016-12-31 | D131: 2017-12-30 | E131: 219 | F131: 121 | G131: 2014-10-31
A132: BRAZIL | B132: Salvador da Bahia | C132: 2016-12-31 | D132: 2017-12-30 | E132: 201 | F132: 121 | G132: 2009-11-30
A133: BRAZIL | B133: Sao Paulo | C133: 2016-12-31 | D133: 2017-12-30 | E133: 286 | F133: 123 | G133: 2015-05-31
A134: BRUNEI | B134: Bandar Seri Begawan | C134: 2016-12-31 | D134: 2017-12-30 | E134: 193 | F134: 97 | G134: 2006-04-30
A135: BRUNEI | B135: Jerudong | C135: 2016-12-31 | D135: 2017-12-30 | E135: 245 | F135: 106 | G135: 2010-02-28
A136: BRUNEI | B136: Other | C136: 2016-12-31 | D136: 2017-12-30 | E136: 75 | F136: 48 | G136: 1996-02-29
A137: BULGARIA | B137: Bourgas | C137: 2016-12-31 | D137: 2017-12-30 | E137: 112 | F137: 74 | G137: 2015-02-28
A138: BULGARIA | B138: Other | C138: 2016-12-31 | D138: 2017-12-30 | E138: 82 | F138: 69 | G138: 2004-01-31
A139: BULGARIA | B139: Plovdiv | C139: 2016-12-31 | D139: 2017-12-30 | E139: 167 | F139: 60 | G139: 2004-04-30
A140: BULGARIA | B140: Sofia | C140: 2016-12-31 | D140: 2017-12-30 | E140: 173 | F140: 103 | G140: 2014-03-31
A141: BULGARIA | B141: Varna | C141: 2016-12-31 | D141: 2017-12-30 | E141: 114 | F141: 77 | G141: 2016-02-29
A142: BURKINA FASO | B142: Bobo Dioulasso | C142: 2016-12-31 | D142: 2017-12-30 | E142: 74 | F142: 65 | G142: 2017-03-31
A143: BURKINA FASO | B143: Other | C143: 2016-12-31 | D143: 2017-12-30 | E143: 74 | F143: 65 | G143: 2017-03-31
A144: BURKINA FASO | B144: Ouagadougou | C144: 2016-12-31 | D144: 2017-12-30 | E144: 172 | F144: 111 | G144: 2017-03-31
A145: BURMA | B145: Naypyitaw | C145: 2016-12-31 | D145: 2017-12-30 | E145: 110 | F145: 106 | G145: 2013-02-28
A146: BURMA | B146: Other | C146: 2016-12-31 | D146: 2017-12-30 | E146: 150 | F146: 93 | G146: 2013-02-28
A147: BURMA | B147: Rangoon | C147: 2016-12-31 | D147: 2017-12-30 | E147: 180 | F147: 107 | G147: 2013-02-28
A148: BURUNDI | B148: Bujumbura | C148: 2016-12-31 | D148: 2017-12-30 | E148: 120 | F148: 67 | G148: 2007-06-30
A149: BURUNDI | B149: Other | C149: 2016-12-31 | D149: 2017-12-30 | E149: 120 | F149: 67 | G149: 2007-06-30
A150: CABO VERDE | B150: Boa Vista Island | C150: 2016-12-31 | D150: 2017-12-30 | E150: 176 | F150: 48 | G150: 2017-03-31
A151: CABO VERDE | B151: Fogo | C151: 2016-12-31 | D151: 2017-12-30 | E151: 73 | F151: 67 | G151: 2017-03-31
A152: CABO VERDE | B152: Other | C152: 2016-12-31 | D152: 2017-12-30 | E152: 66 | F152: 47 | G152: 2017-03-31
A153: CABO VERDE | B153: Praia | C153: 2016-12-31 | D153: 2017-12-30 | E153: 151 | F153: 99 | G153: 2017-03-31
A154: CABO VERDE | B154: Sal Island | C154: 2016-12-31 | D154: 2017-12-30 | E154: 165 | F154: 97 | G154: 2017-03-31
A155: CABO VERDE | B155: Sao Tiago Island | C155: 2016-12-31 | D155: 2017-12-30 | E155: 54 | F155: 46 | G155: 2017-03-31
A156: CABO VERDE | B156: Sao Vicente Island | C156: 2016-12-31 | D156: 2017-12-30 | E156: 121 | F156: 83 | G156: 2017-03-31
A157: CAMBODIA | B157: Other | C157: 2016-12-31 | D157: 2017-12-30 | E157: 110 | F157: 57 | G157: 2011-03-31 | H157: =(SUM(F157:F162)/6) -> 75.16666667
A158: CAMBODIA | B158: Phnom Penh | C158: 2016-12-31 | D158: 2017-12-30 | E158: 151 | F158: 85 | G158: 2010-04-30
A159: CAMBODIA | B159: Siem Reap | C159: 2017-03-31 | D159: 2017-09-29 | E159: 155 | F159: 79 | G159: 2009-11-30
A160: CAMBODIA | B160: Siem Reap | C160: 2017-09-30 | D160: 2017-03-30 | E160: 170 | F160: 81 | G160: 2009-11-30
A161: CAMBODIA | B161: Sihanoukville | C161: 2017-04-30 | D161: 2017-08-30 | E161: 145 | F161: 73 | G161: 2012-06-30
A162: CAMBODIA | B162: Sihanoukville | C162: 2017-08-31 | D162: 2017-04-29 | E162: 180 | F162: 76 | G162: 2012-06-30
A163: CAMEROON | B163: Douala | C163: 2016-12-31 | D163: 2017-12-30 | E163: 172 | F163: 135 | G163: 2017-01-31
A164: CAMEROON | B164: Limbe | C164: 2016-12-31 | D164: 2017-12-30 | E164: 171 | F164: 78 | G164: 2017-01-31
A165: CAMEROON | B165: Other | C165: 2016-12-31 | D165: 2017-12-30 | E165: 138 | F165: 64 | G165: 2017-01-31
A166: CAMEROON | B166: Yaounde | C166: 2016-12-31 | D166: 2017-12-30 | E166: 192 | F166: 118 | G166: 2017-01-31
A167: CANADA | B167: Banff | C167: 2016-12-31 | D167: 2017-12-30 | E167: 312 | F167: 92 | G167: 2017-05-31
A168: CANADA | B168: Calgary | C168: 2016-12-31 | D168: 2017-12-30 | E168: 267 | F168: 133 | G168: 2017-05-31
A169: CANADA | B169: Dartmouth | C169: 2016-12-31 | D169: 2017-12-30 | E169: 199 | F169: 149 | G169: 2017-05-31
A170: CANADA | B170: Edmonton | C170: 2016-12-31 | D170: 2017-12-30 | E170: 189 | F170: 139 | G170: 2017-05-31
A171: CANADA | B171: Fort McMurray, Alberta | C171: 2016-12-31 | D171: 2017-12-30 | E171: 210 | F171: 92 | G171: 2003-12-31
A172: CANADA | B172: Fredericton | C172: 2016-12-31 | D172: 2017-12-30 | E172: 191 | F172: 129 | G172: 2017-05-31
A173: CANADA | B173: Gander, Newfoundland | C173: 2016-12-31 | D173: 2017-12-30 | E173: 172 | F173: 122 | G173: 2017-05-31
A174: CANADA | B174: Goose Bay | C174: 2016-12-31 | D174: 2017-12-30 | E174: 177 | F174: 121 | G174: 2017-05-31
A175: CANADA | B175: Halifax | C175: 2016-12-31 | D175: 2017-12-30 | E175: 199 | F175: 149 | G175: 2017-05-31
A176: CANADA | B176: Kelowna | C176: 2016-12-31 | D176: 2017-12-30 | E176: 203 | F176: 139 | G176: 2017-05-31
A177: CANADA | B177: London, Ontario | C177: 2016-12-31 | D177: 2017-12-30 | E177: 115 | F177: 94 | G177: 2006-07-31
A178: CANADA | B178: Moncton | C178: 2016-12-31 | D178: 2017-12-30 | E178: 162 | F178: 123 | G178: 2017-05-31
A179: CANADA | B179: Montreal | C179: 2016-12-31 | D179: 2017-12-30 | E179: 192 | F179: 120 | G179: 2017-05-31
A180: CANADA | B180: Nanoose Bay | C180: 2016-12-31 | D180: 2017-12-30 | E180: 112 | F180: 104 | G180: 2017-05-31
A181: CANADA | B181: Niagara Falls, Ontario | C181: 2016-12-31 | D181: 2017-12-30 | E181: 187 | F181: 142 | G181: 2017-05-31
A182: CANADA | B182: Other | C182: 2016-12-31 | D182: 2017-12-30 | E182: 136 | F182: 117 | G182: 2017-05-31
A183: CANADA | B183: Ottawa | C183: 2016-12-31 | D183: 2017-12-30 | E183: 223 | F183: 122 | G183: 2017-05-31
A184: CANADA | B184: Prince Edward Island | C184: 2016-12-31 | D184: 2017-12-30 | E184: 209 | F184: 129 | G184: 2017-05-31
A185: CANADA | B185: Quebec | C185: 2016-12-31 | D185: 2017-12-30 | E185: 249 | F185: 140 | G185: 2017-05-31
A186: CANADA | B186: Regina, Saskatchewan | C186: 2016-12-31 | D186: 2017-12-30 | E186: 192 | F186: 91 | G186: 2003-12-31
A187: CANADA | B187: Richmond | C187: 2016-12-31 | D187: 2017-12-30 | E187: 227 | F187: 134 | G187: 2017-05-31
A188: CANADA | B188: Saskatoon, Saskatchewan | C188: 2016-12-31 | D188: 2017-12-30 | E188: 188 | F188: 90 | G188: 2003-12-31
A189: CANADA | B189: Sidney | C189: 2016-12-31 | D189: 2017-12-30 | E189: 154 | F189: 111 | G189: 2017-05-31
A190: CANADA | B190: St. John's, Newfoundland | C190: 2016-12-31 | D190: 2017-12-30 | E190: 192 | F190: 149 | G190: 2017-05-31
A191: CANADA | B191: Toronto | C191: 2016-12-31 | D191: 2017-12-30 | E191: 295 | F191: 134 | G191: 2017-05-31
A192: CANADA | B192: Vancouver | C192: 2017-03-15 | D192: 2017-11-29 | E192: 412 | F192: 173 | G192: 2017-05-31
A193: CANADA | B193: Vancouver | C193: 2017-11-30 | D193: 2017-03-14 | E193: 209 | F193: 153 | G193: 2017-05-31
A194: CANADA | B194: Victoria | C194: 2017-05-14 | D194: 2017-09-30 | E194: 239 | F194: 137 | G194: 2017-05-31
A195: CANADA | B195: Victoria | C195: 2017-10-01 | D195: 2017-05-13 | E195: 176 | F195: 131 | G195: 2017-05-31
A196: CANADA | B196: Whistler, BC | C196: 2016-12-31 | D196: 2017-12-30 | E196: 253 | F196: 132 | G196: 2017-05-31
A197: CANADA | B197: Whitehorse, Yukon | C197: 2016-12-31 | D197: 2017-12-30 | E197: 235 | F197: 107 | G197: 2017-05-31
A198: CANADA | B198: Winnipeg | C198: 2016-12-31 | D198: 2017-12-30 | E198: 202 | F198: 153 | G198: 2017-05-31
A199: CANADA | B199: Yellowknife | C199: 2016-12-31 | D199: 2017-12-30 | E199: 146 | F199: 107 | G199: 2017-05-31
A200: CAYMAN ISLANDS | B200: Cayman Islands | C200: 2017-07-16 | D200: 2017-12-13 | E200: 307 | F200: 119 | G200: 2011-11-30
A201: CAYMAN ISLANDS | B201: Cayman Islands | C201: 2017-12-14 | D201: 2017-07-15 | E201: 588 | F201: 147 | G201: 2011-11-30
A202: CENTRAL AFRICAN REPUBLIC | B202: Bangui | C202: 2016-12-31 | D202: 2017-12-30 | E202: 216 | F202: 111 | G202: 2011-02-28
A203: CENTRAL AFRICAN REPUBLIC | B203: Other | C203: 2016-12-31 | D203: 2017-12-30 | E203: 216 | F203: 111 | G203: 2011-02-28
... 933 more rows

Sheet Exchange Factor List (hidden)
A2: Currency | B2: OANDA Rate | C2: Wells Fargo Rate
A3: AUD Australian Dollar | B3: 0.7485 | C3: 0.7856
A4: BZD Belize Dollar | B4: 0.4858 | C4: 0.51
A5: CNY Chinese Yuan | B5: 0.1543 | C5: 0.1651255
A6: CRC Costa Rican Colon | B6: 0.0015 | C6: 0.0017483
A7: CZK Czech Koruna | B7: 0.046 | C7: 0.049157
A8: DOP Dominican Peso | B8: 0.0174 | C8: 0.0191571
A9: EUR Euro | B9: 1.1872 | C9: 1.2493
A10: GBP British Pound | B10: 1.3894 | C10: 1.4566
A11: HKD Hong Kong Dollar | B11: 0.1287 | C11: 0.1369
A12: INR Indian Rupee | B12: 0.0134 | C12: 0.014
A13: JOD Jordanian Dinar | B13: 1.4104 | C13: 1.5156
A14: JPY Japanese Yen | B14: 0.009 | C14: 0.0095
A15: KHR Cambodian Riel | B15: 0.00024 | C15: 0.00024
A16: KRW Korean Won | B16: 0.0008 | C16: =B16*1.05 -> 0.00084
A17: MXN Mexican Peso | B17: 0.0502 | C17: 0.053314
A18: USD US Dollars | B18: 1 | C18: =B18 -> 1
A19: ZAR South African Rand | B19: 0.07 | C19: 0.074428
A22: Exchange Rates as of:
A23: 7/12/2021
